Cogmind - Beta 17 @@@ ROGUE MODE // 2026.07.14 @ 10:54:21 Player: NuclearMayhem Result: Core destroyed Performance ------------- Evolutions (7) 3500 Regions Visited (15) 3000 Robots Destroyed (27) 135 Value Destroyed (932) 932 Prototype IDs (12) 240 Alien Tech Used (10) 2000 Bonus (9379) 9379 TOTAL SCORE: 19186 Bonus ------- Triggered Max Security 1000 Follower Combat Kills 379 Used Core Reset Matrix 3000 Met Sigix 2000 Activated Exoskeleton 3000 Cogmind --------- Core Integrity 0/1300 Matter 182/300 Energy 100/100 System Corruption 2% Temperature Cool (0) Movement Flying (39) +NEM 1 Location -3/Section 7 Parts ------- > --- POWER (2) -------- (None) > --- PROPULSION (7) --- Impulse Thruster Array Impulse Thruster Array Impulse Thruster Array > --- UTILITY (10) ----- Medium Storage Unit Advanced Sensor Array (fused) Advanced Signal Interpreter Advanced Hacking Suite Core Physics Calibrator Microwarp Drive > --- WEAPON (2) ------- Spear > --- INVENTORY (12) --- Cooled Nuclear Pulse Thruster Impulse Thruster Array Improved Particle Charger Advanced Transmission Jammer Advanced Reaction Control System Faulty Experimental Focal Shield Phase Redirector Core Stripper Peak State ------------ > --- POWER ------------ Light Particle Reactor Matter Drive > --- PROPULSION ------- Diametric Drive Q-thruster Q-thruster Impulse Thruster Array Impulse Thruster Array > --- UTILITY ---------- Medium Storage Unit Advanced Sensor Array Advanced Signal Interpreter Advanced Melee Analysis Suite Advanced Transmission Jammer Advanced Hacking Suite Core Physics Calibrator Microwarp Drive > --- WEAPON ----------- Spear > --- INVENTORY -------- Cooled Nuclear Pulse Thruster Impulse Thruster Array Impulse Thruster Array Improved Particle Charger Advanced Reaction Control System Experimental Focal Shield Phase Redirector Core Stripper [Rating: 177] Favorites ----------- Power Matter Drive Engine Makeshift Power Source Power Core Light Fission Core Reactor Matter Drive Propulsion VTOL Module Leg Aluminum Leg Wheel Wheel Flight Unit VTOL Module Utility Medium Storage Unit Device Advanced Sensor Array Storage Medium Storage Unit Processor Advanced Signal Interpreter Hackware Advanced Hacking Suite Protection Improved Light Armor Plating Artifact Microwarp Drive Weapon Improved Datajack Energy Gun EM Pulse Gun Ballistic Gun Light Assault Rifle Launcher Mini Grenade Launcher Special Weapon Advanced Remote Datajack Impact Weapon Power Maul Piercing Weapon Lance Special Melee Weapon Improved Datajack Build | -11 -10 -10 -9 -8 -7 -7 -7 -6 -6 -6 -5 -4 -3 -3 -3 ------- Run | Yrd Mat Min Mat Mat Fac Low Low Fac Low Low Fac Fac Res Qua Sec Slots Evolved 14 | . . . 2 2 2 . . 2 . . 2 2 2 . . Power 1 | . . . . . . . . . . . 1 . . . . Propulsion 5 | . . . 2 1 . . . 1 . . . . 1 . . Utility 8 | . . . . 1 2 . . 1 . . 1 2 1 . . Weapon . | . . . . . . . . . . . . . . . . Parts Attached 113 | 8 6 . 3 10 9 1 1 12 3 . 8 7 10 20 15 Power 15 | 1 1 . . 2 2 . . 2 . . 2 . 2 3 . Engine 8 | 1 1 . . 2 1 . . 1 . . 2 . . . . Core 2 | . . . . . 1 . . 1 . . . . . . . Reactor 5 | . . . . . . . . . . . . . 2 3 . Propulsion 27 | 4 2 . 2 . 4 . . 2 . . 1 4 3 3 2 Treads . | . . . . . . . . . . . . . . . . Leg 2 | 2 . . . . . . . . . . . . . . . Wheel 2 | 2 . . . . . . . . . . . . . . . Hover . | . . . . . . . . . . . . . . . . Flight 23 | . 2 . 2 . 4 . . 2 . . 1 4 3 3 2 Utility 51 | 1 2 . . 5 2 1 . 6 . . 4 3 4 11 12 Device 34 | . 1 . . 4 . 1 . 5 . . 1 2 2 8 10 Storage 3 | 1 1 . . . 1 . . . . . . . . . . Processor 5 | . . . . . 1 . . 1 . . 2 . . 1 . Hackware 5 | . . . . . . . . . . . 1 1 2 1 . Protection 1 | . . . . 1 . . . . . . . . . . . Artifact 3 | . . . . . . . . . . . . . . 1 2 Weapon 20 | 2 1 . 1 3 1 . 1 2 3 . 1 . 1 3 1 Energy Gun 2 | 2 . . . . . . . . . . . . . . . Energy Cannon . | . . . . . . . . . . . . . . . . Ballistic Gun 2 | . 1 . . 1 . . . . . . . . . . . Ballistic Cannon . | . . . . . . . . . . . . . . . . Launcher 1 | . . . 1 . . . . . . . . . . . . Special Weapon 3 | . . . . . . . . . 2 . . . . . 1 Impact Weapon 5 | . . . . 1 1 . . 1 1 . . . . 1 . Slashing Weapon . | . . . . . . . . . . . . . . . . Piercing Weapon 3 | . . . . . . . . . . . 1 . . 2 . Special Melee Weapon 4 | . . . . 1 . . 1 1 . . . . 1 . . Unidentified Prototypes 12 | . . . . . 1 . . 1 1 . . 1 . 5 3 Parts Lost 13 | . . . . 1 2 . . 1 . . . . 6 . 3 Power 1 | . . . . . . . . . . . . . . . 1 Propulsion 5 | . . . . 1 1 . . 1 . . . . 1 . 1 Utility 5 | . . . . . . . . . . . . . 4 . 1 Weapon 2 | . . . . . 1 . . . . . . . 1 . . Highest Loss Streak 4 | . . . . 1 2 . . 1 . . . . 4 . 2 To Critical Strikes . | . . . . . . . . . . . . . . . . Average Backups 8 | 2 6 10 7 9 9 9 10 9 10 10 9 9 9 7 5 Power . | . . . . . . 1 2 1 1 2 1 1 . . . Propulsion 2 | . 2 2 . . . 2 2 . . . 1 1 5 4 2 Utility 3 | . 1 4 4 5 4 2 4 5 7 7 6 5 3 2 1 Weapon 1 | . 2 4 3 3 3 3 2 1 . . . . . . 1 Tool/Special . | . . . . . . . . . . . . . . . . Unused Backups 24 | . 2 . . 3 2 1 . 3 2 . 3 1 3 3 1 Power 2 | . . . . . . . . . 1 . . 1 . . . Propulsion 3 | . . . . . 1 . . . . . . . . 1 1 Utility 10 | . . . . . 1 . . 1 1 . 3 . 2 2 . Weapon 8 | . 2 . . 3 . 1 . 2 . . . . . . . Tool/Special 1 | . . . . . . . . . . . . . 1 . . Average Slot Usage (%) 85 | . 85 85 85 65 76 86 92 97 99 100 94 93 81 86 77 Engine 3 | . 14 14 11 8 5 . . 4 . . 10 5 . . . Core 1 | . . . . . 1 7 7 1 6 6 . 4 . . . Reactor 3 | . . . . . . . . . . . . . 8 9 7 Leg 1 | . 21 . . . . . . . . . . . . . . Flight 26 | . 6 28 41 31 34 38 38 40 40 40 30 26 20 23 22 Device 16 | . 3 14 2 5 8 9 15 18 26 26 22 29 19 15 16 Storage 5 | . 14 14 11 9 7 7 7 6 6 6 5 5 4 4 4 Processor 5 | . . . . . 1 7 7 6 6 6 5 5 4 8 9 Hackware 6 | . . . . . . . . . . . 4 5 13 16 7 Energy Gun 1 | . 22 . . . . . . . . . . . . . . Impact Weapon 2 | . . . . 2 6 7 7 6 5 6 2 . . 1 . Piercing Weapon 2 | . . . . . . . . . . . 2 5 4 2 4 Special Melee Weapon 2 | . . . . 1 4 . . 6 6 6 5 5 3 1 . Peak Build Rating 177 | 6 11 10 14 21 39 40 43 56 68 57 76 103 131 167 177 Average Rating 89 | 4 6 10 13 15 32 37 40 51 56 57 71 91 117 148 143 On Entrance 48 | . 6 10 10 14 15 36 40 43 56 57 57 76 101 131 130 Avg Prop Armor Cover (%) 2 | . . . . . . . . 2 2 . . . . . . Naked Turns . | . . . . . . . . . . . . . . . . Heaviest Build 60 | 12 17 14 15 20 29 25 26 30 26 26 27 34 51 60 52 Greatest Support 63 | 20 20 14 16 22 32 26 26 31 31 31 34 37 59 63 61 Greatest Overweight (x) 1 | 1 . . . . . . . . . . . . 1 1 . Average Overweight (x) . | . . . . . . . . . . . . . . . . Largest Inventory Capacity 12 | 8 10 10 10 10 10 10 10 10 10 10 10 10 10 10 12 Average Capacity 10 | 7 9 10 10 10 10 10 10 10 10 10 10 10 10 10 11 Most Carried 12 | 4 10 10 9 10 10 10 10 10 10 10 10 10 10 10 12 Average Carried 9 | 2 6 10 7 9 9 9 10 9 9 10 9 9 9 9 9 Final Capacity 12 | 8 10 10 10 10 10 10 10 10 10 10 10 10 10 10 12 Final Carried 10 | 4 10 10 7 10 9 10 10 10 10 10 10 10 10 10 10 Class Distribution -------------------- 39% | Hacker-Sprinter 31% | Sprinter 10% | Alien-Sprinter 6% | Scientist-Sprinter 6% | Mutant Dominant Class ---------------- Mutant | -10/Materials Sprinter | -10/Mines Sprinter | -9/Materials Sprinter | -8/Materials Sprinter | -7/Factory Sprinter | -7/Lower Caves Sprinter | -7/Lower Caves Sprinter | -6/Factory Scientist-Sprinter | -6/Lower Caves Scientist-Sprinter | -6/Lower Caves Sprinter | -5/Factory Sprinter | -4/Factory Hacker-Sprinter | -3/Research Hacker-Sprinter | -3/Quarantine Alien-Sprinter | -3/Section 7 Resources | -11 -10 -10 -9 -8 -7 -7 -7 -6 -6 -6 -5 -4 -3 -3 -3 ----------- Run | Yrd Mat Min Mat Mat Fac Low Low Fac Low Low Fac Fac Res Qua Sec Matter Collected 1571 | 242 48 . . . 89 275 10 80 90 . 58 . 222 133 324 Remotely . | . . . . . . . . . . . . . . . . Salvage Created 1186 | . 124 . . 51 89 73 . 80 101 . 58 41 299 112 158 Parts 41 | . 5 . . 1 3 . . 3 . . 4 . 9 8 8 Haulers Intercepted . | . . . . . . . . . . . . . . . . Recyclers Shooed 1 | . . . . . . . . . . . . . . . 1 Parts Field Recycled . | . . . . . . . . . . . . . . . . Retrieved Matter . | . . . . . . . . . . . . . . . . Parts Self-Destructed . | . . . . . . . . . . . . . . . . Prevented 2 | . . . . . . . 2 . . . . . . . . Parts Restored . | . . . . . . . . . . . . . . . . Kills | -11 -10 -10 -9 -8 -7 -7 -7 -6 -6 -6 -5 -4 -3 -3 -3 ------- Run | Yrd Mat Min Mat Mat Fac Low Low Fac Low Low Fac Fac Res Qua Sec Combat Hostiles Destroyed 12 | . 2 . . 1 4 1 . 1 2 . . . . 1 . Melee 8 | . . . . 1 3 1 . 1 1 . . . . 1 . Guns 1 | . 1 . . . . . . . . . . . . . . Classes Destroyed 12 | . 2 . . 1 1 2 . 1 . . . . 1 2 2 Worker 1 | . . . . . . . . . . . . . . . 1 Builder 2 | . . . . . . . . . . . . . . . 2 Recycler 3 | . . . . . . . . . . . . . 2 . 1 Minesweeper 1 | . . . . . . 1 . . . . . . . . . Operator 2 | . 1 . . . . . . . . . . . 1 . . Drone 1 | . . . . . . . . . . . . . . 1 . Watcher 6 | . . . . . . . . 1 . . 2 1 . 2 . Swarmer 4 | . . . . . 4 . . . . . . . . . . Grunt 2 | . 2 . . . . . . . . . . . . . . Researcher 1 | . . . . . . . . . . . . . . 1 . Sentry 2 | . . . . 1 . . . . 1 . . . . . . Hunter 3 | . . . . . . 1 . 1 1 . . . . . . Best Kill Streak 4 | . 3 . . 1 4 1 . 1 1 . 2 1 2 2 2 Combat Bots Only 4 | . 2 . . 1 4 1 . 1 1 . . . . 1 . Max Kills in Single Turn 1 | . 1 . . 1 1 1 . 1 1 . 1 1 1 1 1 Gunslinging . | . . . . . . . . . . . . . . . . Exploded . | . . . . . . . . . . . . . . . . Melee 1 | . . . . 1 1 1 . 1 1 . . . . 1 . Uniques/NPCs Destroyed . | . . . . . . . . . . . . . . . . Combat | -11 -10 -10 -9 -8 -7 -7 -7 -6 -6 -6 -5 -4 -3 -3 -3 -------- Run | Yrd Mat Min Mat Mat Fac Low Low Fac Low Low Fac Fac Res Qua Sec Hostile Shots Fired 415 | . 16 12 1 29 23 15 3 . 44 1 1 2 62 49 157 Missed 261 | . 5 7 . 21 9 11 2 . 28 1 1 2 36 39 99 Hits 154 | . 11 5 1 8 14 4 1 . 16 . . . 26 10 58 Melee 2 | . . . . 1 . . . . . . . . . . 1 Projectile 152 | . 11 5 1 7 14 4 1 . 16 . . . 26 10 57 AOE 1 | . . . . 1 . . . . . . . . . . . Critical Strikes 7 | . 1 . . 3 . . . . . . . . . . 3 Damage Taken 3797 | . 154 41 12 150 248 40 20 55 146 . . . 594 176 2161 Core 1509 | . 54 34 . 63 44 6 20 . 35 . . . 67 53 1133 Absorbed by Shields . | . . . . . . . . . . . . . . . . Redirected to Core 5 | . . . . . . . . . . . . . . 5 . Regen/Repaired (Parts) 530 | . . . . . 38 . . . . . 19 . . . 473 Core Remaining (%) 92 | 100 . 64 100 88 . . 90 . . 95 100 100 . . . Volleys Fired 17 | . 13 . . 4 . . . . . . . . . . . Largest 2 | . 2 . . 1 . . . . . . . . . . . Hottest 80 | . 80 . . 25 . . . . . . . . . . . Shots Fired 27 | . 23 . . 4 . . . . . . . . . . . Gun 27 | . 23 . . 4 . . . . . . . . . . . Cannon . | . . . . . . . . . . . . . . . . Launcher . | . . . . . . . . . . . . . . . . Special . | . . . . . . . . . . . . . . . . Kinetic 7 | . 3 . . 4 . . . . . . . . . . . Thermal . | . . . . . . . . . . . . . . . . Explosive . | . . . . . . . . . . . . . . . . Electromagnetic 20 | . 20 . . . . . . . . . . . . . . Robot Hit Streak 20 | . 20 . . 1 . . . . . . . . . . . Robot Miss Streak 5 | . 2 . . 5 . . . . . . . . . . . Penetration Max . | . . . . . . . . . . . . . . . . Secondary Targets . | . . . . . . . . . . . . . . . . Shots Hit Robots 65 | . 20 . . 7 4 2 . 2 7 . 3 4 5 4 7 Core Hits 25 | . 5 . . 3 1 . . 2 1 . 2 1 3 4 3 Critical Kills 1 | . . . . . . . . 1 . . . . . . . Critical Parts Destroyed 2 | . . . . . 2 . . . . . . . . . . Critical Strikes 5 | . . . . . 2 . . 1 . . 1 . . . 1 Smash 3 | . . . . . 2 . . 1 . . . . . . . Impale 2 | . . . . . . . . . . . 1 . . . 1 Melee Attacks 129 | . . . . 8 5 5 . 10 9 . 21 6 32 15 18 Impact 41 | . . . . 8 5 5 . 10 9 . 4 . . . . Slashing . | . . . . . . . . . . . . . . . . Piercing 88 | . . . . . . . . . . . 17 6 32 15 18 Sneak Attacks 15 | . . . . 1 . 1 . 2 . . . . 3 2 6 Combat Hostiles 1 | . . . . . . . . 1 . . . . . . . Follow-up Attacks . | . . . . . . . . . . . . . . . . Damage Inflicted 3202 | . 259 . . 376 216 191 . 243 367 . 187 237 314 328 484 Guns 314 | . 259 . . 55 . . . . . . . . . . . Cannons . | . . . . . . . . . . . . . . . . Explosions . | . . . . . . . . . . . . . . . . Melee 2888 | . . . . 321 216 191 . 243 367 . 187 237 314 328 484 Ramming . | . . . . . . . . . . . . . . . . Kinetic 61 | . 6 . . 55 . . . . . . . . . . . Thermal . | . . . . . . . . . . . . . . . . Explosive . | . . . . . . . . . . . . . . . . Electromagnetic 253 | . 253 . . . . . . . . . . . . . . Impact 1338 | . . . . 321 216 191 . 243 367 . . . . . . Slashing . | . . . . . . . . . . . . . . . . Piercing 1550 | . . . . . . . . . . . 187 237 314 328 484 Highest Corruption 2 | . . . . . . . . . . . . . . . 2 Average Corruption 1 | . . . . . . . . . . . . . . . 1 Corruption Purged . | . . . . . . . . . . . . . . . . Corruption Blocked . | . . . . . . . . . . . . . . . . Effects 1 | . . . . . . . . . . . . . . . 1 Parts Fused 1 | . . . . . . . . . . . . . . . 1 Overload Shots . | . . . . . . . . . . . . . . . . Overflow Damage 510 | . . . . 15 101 141 . . 71 . 44 . 25 . 113 Projectiles . | . . . . . . . . . . . . . . . . Explosions . | . . . . . . . . . . . . . . . . Melee 510 | . . . . 15 101 141 . . 71 . 44 . 25 . 113 Knockbacks 1 | . . . . . 1 . . . . . . . . . . Impact 1 | . . . . . 1 . . . . . . . . . . Kinetic . | . . . . . . . . . . . . . . . . Secondary . | . . . . . . . . . . . . . . . . Self-Inflicted Damage . | . . . . . . . . . . . . . . . . Shots . | . . . . . . . . . . . . . . . . Rammed . | . . . . . . . . . . . . . . . . Targets Rammed . | . . . . . . . . . . . . . . . . Kicked . | . . . . . . . . . . . . . . . . Crushed . | . . . . . . . . . . . . . . . . Highest Temperature 258 | . 213 . 3 11 16 15 . . . . 3 2 258 54 111 Average Temperature 40 | . 92 . 3 10 7 8 . . . . 3 2 54 26 31 Received Heat Transfer 394 | . 99 . 6 90 6 12 . . 45 . . . 12 . 124 Siege Activations . | . . . . . . . . . . . . . . . . Martial Activations . | . . . . . . . . . . . . . . . . Shielding Activations . | . . . . . . . . . . . . . . . . Robots Disrupted . | . . . . . . . . . . . . . . . . Combat Hostiles . | . . . . . . . . . . . . . . . . Robots Corrupted 3 | . 1 . . . 1 . . . 1 . . . . . . Combat Hostiles 3 | . 1 . . . 1 . . . 1 . . . . . . Parts Fried 8 | . 2 . . . 2 3 . . 1 . . . . . . Impact Corruptions 9 | . . . . 1 3 4 . . 1 . . . . . . Robots Melted . | . . . . . . . . . . . . . . . . Combat Hostiles . | . . . . . . . . . . . . . . . . Parts Melted . | . . . . . . . . . . . . . . . . Heat Transferred . | . . . . . . . . . . . . . . . . Parts Sabotaged 2 | . . . . . . . . . . . . . . . 2 Parts Stolen . | . . . . . . . . . . . . . . . . Parts Stripped . | . . . . . . . . . . . . . . . . Power Chain Reactions . | . . . . . . . . . . . . . . . . Alert | -11 -10 -10 -9 -8 -7 -7 -7 -6 -6 -6 -5 -4 -3 -3 -3 ------- Run | Yrd Mat Min Mat Mat Fac Low Low Fac Low Low Fac Fac Res Qua Sec Maximum Alert Level 5 | . . . . . . . . . . . . . . . 5 Low Security (%) 87 | 100 100 100 100 100 100 . . 100 . . 100 100 100 100 42 Level 1 . | . . . . . . . . . . . . . . . . Level 2 . | . . . . . . . . . . . . . . . . Level 3 . | . . . . . . . . . . . . . . . . Level 4 . | . . . . . . . . . . . . . . . . Level 5 . | . . . . . . . . . . . . . . . . High Security . | . . . . . . . . . . . . . . . . Max Security 12 | . . . . . . . . . . . . . . . 57 Peak Influence 3074 | . 40 . 50 91 90 . . 48 . . 32 15 150 161 3074 Initial 79 | . . . . 20 30 . . 48 . . 16 . . 79 18 Average 290 | . 8 . 14 49 26 . . 21 . . 8 3 42 99 1231 Influence Increases 3033 | . 57 . 60 137 153 80 . 102 140 . 121 27 340 197 1619 Destroy 0b10 Robot/C 380 | . 40 . . 20 80 20 . 20 40 . . . . 20 140 Destroy 0b10 Robot/NC 85 | . 5 . . . . 5 . 5 . . 10 5 15 15 25 Destroy Leader 94 | . 10 . . 10 10 10 . 12 10 . 4 2 . 4 22 Allied During Kill 40 | . . . . . . . . . . . . . . . 40 Successful Hack 122 | . 2 . . 15 3 . . 27 . . 11 3 35 26 . Disable Machine 150 | . . . . . . . . . . . . . . 45 105 Destroy Structure 152 | . . . . 2 . . . 8 . . 36 2 50 12 42 Partial Spotted 165 | . . . 15 . . . . 30 . . 30 15 15 . 60 Lose Combat Pursuer 1845 | . . . 45 90 60 45 . . 90 . 30 . 225 75 1185 Influence Decreases 1549 | . 55 2 10 120 130 74 19 179 105 8 148 27 198 305 169 Entered New Map 249 | . . 2 . 30 37 34 19 29 . 8 11 . . 63 16 Time Decay 1079 | . 55 . 10 80 73 40 . 116 105 . 110 27 158 222 83 Lost Part 110 | . . . . 10 20 . . 10 . . . . 40 . 30 Lost Ally 80 | . . . . . . . . . . . 20 . . 20 40 Purge Threat 31 | . . . . . . . . 24 . . 7 . . . . Squads Dispatched 31 | . . . . 2 1 . . 1 . . 1 . 2 3 21 Investigation . | . . . . . . . . . . . . . . . . Extermination 8 | . . . . . 1 . . 1 . . 1 . 2 2 1 Reinforcement 3 | . . . . 2 . . . . . . . . . 1 . Assault 20 | . . . . . . . . . . . . . . . 20 Garrison . | . . . . . . . . . . . . . . . . Intercept . | . . . . . . . . . . . . . . . . Searches Triggered . | . . . . . . . . . . . . . . . . Construction Impeded . | . . . . . . . . . . . . . . . . Haulers Reinforced . | . . . . . . . . . . . . . . . . Active Scanning Responses . | . . . . . . . . . . . . . . . . Cargo Convoy Interrupts . | . . . . . . . . . . . . . . . . Stealth | -11 -10 -10 -9 -8 -7 -7 -7 -6 -6 -6 -5 -4 -3 -3 -3 --------- Run | Yrd Mat Min Mat Mat Fac Low Low Fac Low Low Fac Fac Res Qua Sec Distress Signals 9 | . . . 2 2 . . . . . . 1 1 . 1 2 Communications Jammed 37 | . . . . . . . . . . . . 3 . 4 30 Distress Signals 23 | . . . . . . . . . . . . 3 . . 20 Times Spotted 237 | . 7 6 7 23 7 7 1 . 8 3 4 5 21 19 119 Peak Tracking Total 39 | . 4 6 7 13 6 3 1 . 3 3 2 4 7 6 39 Tactical Retreats 38 | . . . 1 2 1 2 . . 2 . 2 . 6 5 17 ECM-based Alert Blocks 4 | . . . . . . . . . . . . . . 4 . Traps | -11 -10 -10 -9 -8 -7 -7 -7 -6 -6 -6 -5 -4 -3 -3 -3 ------- Run | Yrd Mat Min Mat Mat Fac Low Low Fac Low Low Fac Fac Res Qua Sec Traps Triggered 7 | . 1 . . . 2 . . 2 . . . 1 . 1 . Indirectly . | . . . . . . . . . . . . . . . . Trap Hack Attempts . | . . . . . . . . . . . . . . . . Triggered . | . . . . . . . . . . . . . . . . Disarmed . | . . . . . . . . . . . . . . . . Reprogrammed . | . . . . . . . . . . . . . . . . Reused . | . . . . . . . . . . . . . . . . Traps Extracted . | . . . . . . . . . . . . . . . . Installed . | . . . . . . . . . . . . . . . . Triggered . | . . . . . . . . . . . . . . . . Machines | -11 -10 -10 -9 -8 -7 -7 -7 -6 -6 -6 -5 -4 -3 -3 -3 ---------- Run | Yrd Mat Min Mat Mat Fac Low Low Fac Low Low Fac Fac Res Qua Sec Machines Disabled 12 | . . . . . . . . . 1 . . . . 3 8 Max in Single Turn 1 | . . . . . . . . . 1 . . . . 1 1 Garrison Access 2 | . . . . . . . . . . . . . 1 1 . Machines Repaired . | . . . . . . . . . . . . . . . . Machines Dismantled . | . . . . . . . . . . . . . . . . Machines Sabotaged . | . . . . . . . . . . . . . . . . Overloaded Fab Kills . | . . . . . . . . . . . . . . . . Hacking | -11 -10 -10 -9 -8 -7 -7 -7 -6 -6 -6 -5 -4 -3 -3 -3 --------- Run | Yrd Mat Min Mat Mat Fac Low Low Fac Low Low Fac Fac Res Qua Sec Machines Accessed 54 | . 4 . 1 2 3 . . 6 . . 11 3 7 13 4 Terminals 33 | . 3 . 1 2 . . . 3 . . 5 2 4 10 3 Fabricators 5 | . . . . . . . . 1 . . 3 . 1 . . Repair Stations 3 | . . . . . 2 . . . . . 1 . . . . Recycling Units 4 | . 1 . . . . . . 1 . . 1 1 . . . Scanalyzers 6 | . . . . . 1 . . 1 . . . . 1 2 1 Garrison Access 3 | . . . . . . . . . . . 1 . 1 1 . Total Hacks 149 | . 11 . 4 6 9 . . 26 . . 30 8 17 30 8 Successful 94 | . 7 . 1 3 7 . . 15 . . 18 4 11 21 7 Failed 54 | . 4 . 3 3 2 . . 11 . . 12 4 6 8 1 Catastrophic 6 | . . . . 1 . . . 1 . . 1 . 1 2 . Database Lockouts 1 | . . . . . . . . . . . . . . 1 . Manual 85 | . 6 . 4 6 . . . 13 1 . 20 6 8 19 2 Terminals 97 | . 7 . 4 6 . . . 18 . . 16 7 12 23 4 Fabricators 10 | . . . . . . . . 1 . . 8 . 1 . . Repair Stations 9 | . . . . . 7 . . . . . 2 . . . . Recycling Units 10 | . 4 . . . . . . 3 . . 2 1 . . . Scanalyzers 19 | . . . . . 2 . . 4 . . . . 3 6 4 Garrison Access 4 | . . . . . . . . . . . 2 . 1 1 . Terminal Hacks 28 | . 1 . . 1 . . . 7 . . 3 1 4 8 3 Record 1 | . . . . . . . . . . . . . . 1 . Open Door 3 | . . . . . . . . . . . . . 1 1 1 Level Access Points 1 | . . . . . . . . . . . 1 . . . . Branch Access Points 2 | . . . . . . . . . . . . . 1 1 . Emergency Access Points 1 | . . . . . . . . . . . . . 1 . . Machine Index 1 | . . . . . . . . . . . . . 1 . . Terminal Index 4 | . . . . 1 . . . 1 . . 1 . . 1 . Alert Level 2 | . . . . . . . . 2 . . . . . . . Unreport Threat 2 | . . . . . . . . 1 . . 1 . . . . Locate Traps 3 | . 1 . . . . . . 2 . . . . . . . Recall Extermination 2 | . . . . . . . . . . . . . . 1 1 Recall Reinforcements 1 | . . . . . . . . . . . . . . 1 . Registered Components 1 | . . . . . . . . . . . . 1 . . . Zone Layout 3 | . . . . . . . . 1 . . . . . 2 . Activate Exoskeleton 1 | . . . . . . . . . . . . . . . 1 Fabricator Hacks 2 | . . . . . . . . 1 . . 1 . . . . Network Status 1 | . . . . . . . . 1 . . . . . . . Build 1 | . . . . . . . . . . . 1 . . . . Repair Station Hacks 7 | . . . . . 5 . . . . . 2 . . . . Scan Component 4 | . . . . . 3 . . . . . 1 . . . . Repair 3 | . . . . . 2 . . . . . 1 . . . . Recycling Unit Hacks 5 | . 2 . . . . . . 1 . . 1 1 . . . Report Inventory 2 | . 1 . . . . . . 1 . . . . . . . Retrieve Matter 1 | . 1 . . . . . . . . . . . . . . Retrieve Components 2 | . . . . . . . . . . . 1 1 . . . Scanalyzer 16 | . . . . . 2 . . 4 . . . . 2 4 4 Insert Component 2 | . . . . . . . . . . . . . 1 1 . Retrieve Study 14 | . . . . . 2 . . 4 . . . . 1 3 4 Garrison Access Hacks 2 | . . . . . . . . . . . . . 1 1 . Seal Access 2 | . . . . . . . . . . . . . 1 1 . Unauthorized Hacks 34 | . 4 . 1 2 . . . 2 . . 11 2 4 8 . Terminals 28 | . 2 . 1 2 . . . 2 . . 8 2 3 8 . Track 1 | . 1 . . . . . . . . . . . . . . Assimilate 2 | . . . . . . . . . . . 1 . . 1 . Botnet 22 | . 1 . 1 2 . . . 2 . . 4 2 3 7 . Operators 1 | . . . . . . . . . . . 1 . . . . Skim 2 | . . . . . . . . . . . 2 . . . . Fabricators 4 | . . . . . . . . . . . 3 . 1 . . Liberate 1 | . . . . . . . . . . . 1 . . . . Fabnet 3 | . . . . . . . . . . . 2 . 1 . . Repair Stations . | . . . . . . . . . . . . . . . . Recycling Units 2 | . 2 . . . . . . . . . . . . . . Monitor 1 | . 1 . . . . . . . . . . . . . . Recyclers 1 | . 1 . . . . . . . . . . . . . . Scanalyzers . | . . . . . . . . . . . . . . . . Garrison Access . | . . . . . . . . . . . . . . . . Data Cores Recovered 1 | . . . . . . . . . . . . . 1 . . Used . | . . . . . . . . . . . . . . . . Hacking Detections 43 | . 4 . 1 2 3 . . 4 . . 8 3 6 10 2 Full Trace Events . | . . . . . . . . . . . . . . . . Feedback Events . | . . . . . . . . . . . . . . . . Feedback Blocked . | . . . . . . . . . . . . . . . . Robot Schematics Acquired 3 | . . . . . . . . . . . . . . 3 . Robots Built 2 | . . . . . . . . . . . 2 . . . . Authchips . | . . . . . . . . . . . . . . . . Time 81 | . . . . . . . . . . . 81 . . . . Total Robot Build Rating 2 | . . . . . . . . . . . 2 . . . . Part Schematics Acquired 2 | . . . . . . . . . . . . . . 2 . Parts Built . | . . . . . . . . . . . . . . . . Authchips . | . . . . . . . . . . . . . . . . Time . | . . . . . . . . . . . . . . . . Total Part Build Rating . | . . . . . . . . . . . . . . . . Part Studies Acquired 14 | . . . . . 2 . . 4 . . . . 1 3 4 Parts Repaired 3 | . . . . . 2 . . . . . 1 . . . . Time 114 | . . . . . 64 . . . . . 50 . . . . Parts Recycled . | . . . . . . . . . . . . . . . . Recycled Matter . | . . . . . . . . . . . . . . . . Retrieved Matter . | . . . . . . . . . . . . . . . . Retrieved Components 2 | . . . . . . . . . . . 1 1 . . . Parts Scanalyzed . | . . . . . . . . . . . . . . . . Part Schematics Acquired . | . . . . . . . . . . . . . . . . Parts Damaged . | . . . . . . . . . . . . . . . . Bothacking | -11 -10 -10 -9 -8 -7 -7 -7 -6 -6 -6 -5 -4 -3 -3 -3 ------------ Run | Yrd Mat Min Mat Mat Fac Low Low Fac Low Low Fac Fac Res Qua Sec Used RIF Installer . | . . . . . . . . . . . . . . . . Robots Hacked 3 | . . . . . . . . . . . . . . 1 2 Non-combat . | . . . . . . . . . . . . . . . . Combat 3 | . . . . . . . . . . . . . . 1 2 Robot Hacks Applied . | . . . . . . . . . . . . . . . . Relay Couplers Released . | . . . . . . . . . . . . . . . . Fabnet Peak Effective % 6 | . . . . . . . . . . . . 6 2 2 2 Autooverrided 3 | . . . . . . . . . . . . . . 1 2 Robots Rewired . | . . . . . . . . . . . . . . . . Allies Hacked 1 | . . . . . . . . . . . . . . 1 . Hacks Repelled . | . . . . . . . . . . . . . . . . Allies | -11 -10 -10 -9 -8 -7 -7 -7 -6 -6 -6 -5 -4 -3 -3 -3 -------- Run | Yrd Mat Min Mat Mat Fac Low Low Fac Low Low Fac Fac Res Qua Sec Total Allies 7 | . . . . . . . . . . . 3 . . 1 3 Largest Group 2 | . . . . . . . . . . . 2 . . 1 2 Highest-Rated Group 1246 | . . . . . . . . . . . 20 . . 47 1246 Highest-Rated Ally 1204 | . . . . . . . . . . . 10 . . 47 1204 Total Orders 2 | . . . . . . . . . . . . . 2 . . EXPLORE 2 | . . . . . . . . . . . . . 2 . . Ally Attacks 38 | . . . . . . . . . . . . . . 2 36 Total Damage 2642 | . . . . . . . . . . . . . . 50 2592 Kills 8 | . . . . . . . . . . . . . . . 8 Allies Corrupted . | . . . . . . . . . . . . . . . . Allies Melted . | . . . . . . . . . . . . . . . . Intel | -11 -10 -10 -9 -8 -7 -7 -7 -6 -6 -6 -5 -4 -3 -3 -3 ------- Run | Yrd Mat Min Mat Mat Fac Low Low Fac Low Low Fac Fac Res Qua Sec Active Infowar (turns) 2291 | . . . . . . . . 1 . . 401 101 610 478 700 Sensors 2290 | . . . . . . . . . . . 401 101 610 478 700 Structural 1 | . . . . . . . . . . . . . . . 1 Jamming 1330 | . . . . . . . . 1 . . . 40 399 237 653 ECM 71 | . . . . . . . . . . . . . . 71 . Robot Analysis Total . | . . . . . . . . . . . . . . . . Derelict Logs Recovered 3 | . . . . . . 2 . . 1 . . . . . . Drone Launches 4 | . . . . . . . . . . . . . 4 . . Drone Recoveries 2 | . . . . . . . . . . . . . 2 . . Exploration | -11 -10 -10 -9 -8 -7 -7 -7 -6 -6 -6 -5 -4 -3 -3 -3 ------------- Run | Yrd Mat Min Mat Mat Fac Low Low Fac Low Low Fac Fac Res Qua Sec Turns Passed 3641 | 47 253 5 25 171 196 96 12 316 225 1 405 101 610 478 700 Spaces Moved 8346 | 34 217 14 82 404 336 325 42 849 772 5 983 281 1093 1092 1817 Core 2 | 2 . . . . . . . . . . . . . . . Treads . | . . . . . . . . . . . . . . . . Legs 135 | 13 122 . . . . . . . . . . . . . . Wheels 19 | 19 . . . . . . . . . . . . . . . Hover . | . . . . . . . . . . . . . . . . Flight 7742 | . 95 14 82 404 336 325 42 849 772 5 983 281 1093 1092 1369 Fastest Speed 16 | 50 32 32 26 26 24 24 24 20 20 20 20 24 16 16 25 Average Speed 27 | 94 81 32 26 27 24 24 24 20 22 21 22 24 28 26 28 Slowest Speed 120 | 120 120 32 26 29 29 24 24 23 23 23 24 24 99 101 39 Overloaded Moves 637 | . . . . . . . . . . . . . 236 391 10 Propulsion Burnouts . | . . . . . . . . . . . . . . . . Robots Hopped 41 | . 2 2 . 5 3 . . 3 . . 4 1 5 9 7 Potential Cave-ins 73 | . . . . . . . . . . . . . . 24 49 Cave-ins Triggered . | . . . . . . . . . . . . . . . . Microwarps 43 | . . . . . . . . . . . . . . . 43 Exploration Rate (%) 33 | 3 32 6 18 37 13 60 9 30 87 2 31 11 26 90 76 Regions Visited 15 Branch Regions 7 Pre-discovered Areas 1 | . . . . . . 1 . . . . . . . . . Known Exits Taken 4 | . . . . . . . . . . . 1 1 1 1 . Unknown Exits Taken 11 | 1 1 1 1 1 1 1 1 1 1 1 . . . . . Scrap Searched 12 | . . . . . . 3 1 . 8 . . . . . . Spaces Dug 61 | . . . . 1 . 2 . 8 . . 18 1 25 6 . Terrain Destroyed 61 | . . . . 1 . 2 . 8 . . 18 1 25 6 . Melee 61 | . . . . 1 . 2 . 8 . . 18 1 25 6 . Projectile . | . . . . . . . . . . . . . . . . AOE . | . . . . . . . . . . . . . . . . Terrain Rammed . | . . . . . . . . . . . . . . . . Walls Destroyed . | . . . . . . . . . . . . . . . . Machines Disabled . | . . . . . . . . . . . . . . . . Actions | -11 -10 -10 -9 -8 -7 -7 -7 -6 -6 -6 -5 -4 -3 -3 -3 --------- Run | Yrd Mat Min Mat Mat Fac Low Low Fac Low Low Fac Fac Res Qua Sec Total 9130 | 45 270 11 85 444 437 335 42 975 809 4 1129 303 1346 1249 1646 Wait 707 | . 10 . . . 71 . . 65 10 . 103 . 188 84 176 Move 7846 | 33 213 10 81 394 329 324 41 842 771 4 974 278 1082 1073 1397 Hop 38 | . 1 1 . 4 3 . . 3 . . 4 1 5 9 7 Pick Up 89 | 4 15 . . 8 6 3 . 11 4 . 9 3 10 13 3 Fast Attach 68 | 6 3 . . 3 7 1 1 3 5 . 3 3 8 4 21 Attach 39 | . 1 . 3 6 5 . . 4 . . 3 2 5 6 4 Detach 19 | . . . . 6 3 . . 1 . . . . 1 3 5 Swap 46 | 2 3 . . 3 2 . . 7 1 . 3 5 1 19 . Drop 117 | . 11 . 1 8 6 2 . 14 9 . 9 5 14 23 15 Fire 17 | . 13 . . 4 . . . . . . . . . . . Melee 129 | . . . . 8 5 5 . 10 9 . 21 6 32 15 18 Ram . | . . . . . . . . . . . . . . . . Kick . | . . . . . . . . . . . . . . . . Crush . | . . . . . . . . . . . . . . . . Escape Stasis 15 | . . . . . . . . 15 . . . . . . . Rewire . | . . . . . . . . . . . . . . . . Trap . | . . . . . . . . . . . . . . . . Miscellaneous . | . . . . . . . . . . . . . . . . Route ------- -11/Scrapyard -10/Materials -10/Mines -9/Materials -8/Materials -7/Factory -7/Lower Caves -7/Lower Caves -6/Factory -6/Lower Caves -6/Lower Caves -5/Factory (discovered 4 exits: *Fac x4) -4/Factory -3/Research (discovered 3 exits: Arm / *Qua x2) -3/Quarantine (discovered 3 exits: *Res / *Sec / *Frg) -3/Section 7 History --------- Turn | Location | Event 28 | -11/Scrapyard | Discovered new exit (range 13) 48 | -11/Scrapyard | Entered Materials 294 | -10/Materials | Discovered new exit (range 7) 301 | -10/Materials | Entered Mines 302 | -10/Mines | Discovered new exit (range 12) 306 | -10/Mines | Entered Materials 306 | -9/Materials | Evolved 2 slots: Propulsion x2 327 | -9/Materials | Discovered new exit (range 7) 331 | -9/Materials | Entered another Materials area 331 | -8/Materials | Evolved 2 slots: Propulsion x1, Utility x1 498 | -8/Materials | Discovered new exit (range 14) 502 | -8/Materials | Entered Factory 502 | -7/Factory | Evolved 2 slots: Utility x2 559 | -7/Factory | Build established: Sprinter 573 | -7/Factory | Repaired VTOL Module 606 | -7/Factory | Repaired VTOL Module 687 | -7/Factory | Discovered new exit (range 12) 698 | -7/Factory | Entered Lower Caves 709 | -7/Lower Caves | Attracted the attention of an 0b10 checkpoint 747 | -7/Lower Caves | Learned location of 1 exit from Proximity Caves 777 | -7/Lower Caves | Learned location of Zion (-6) 792 | -7/Lower Caves | Discovered new exit (range 8) 794 | -7/Lower Caves | Entered another Lower Caves area 798 | -7/Lower Caves | Spotted B-75 Beast 801 | -7/Lower Caves | Discovered new exit (range 15) 806 | -7/Lower Caves | Entered Factory 806 | -6/Factory | Evolved 2 slots: Propulsion x1, Utility x1 836 | -6/Factory | Spotted B-75 Beast 1008 | -6/Factory | Discovered new exit (range 12) 1122 | -6/Factory | Entered Lower Caves 1125 | -6/Lower Caves | Attracted the attention of an 0b10 checkpoint 1202 | -6/Lower Caves | Found DCF Scrap (15 items) 1252 | -6/Lower Caves | Learned Factory security intel 1315 | -6/Lower Caves | Acquired the password to a Derelict Tinkerer's latest research 1316 | -6/Lower Caves | Found Prototype Special Weapon 1316 | -6/Lower Caves | Identified Molecular Deconstructor 1337 | -6/Lower Caves | Discovered new exit (range 11) 1347 | -6/Lower Caves | Entered another Lower Caves area 1347 | -6/Lower Caves | Discovered new exit (range 5) 1348 | -6/Lower Caves | Entered Factory 1348 | -5/Factory | Evolved 2 slots: Power x1, Utility x1 1383 | -5/Factory | Identified exit to Factory 1520 | -5/Factory | Repaired Phase Shifter 1549 | -5/Factory | Fabricated T-07 Excavator (x2) 1753 | -5/Factory | Entered another Factory area 1753 | -4/Factory | Evolved 2 slots: Utility x2 1836 | -4/Factory | Discovered new exit (range 16) 1854 | -4/Factory | Identified exit to Research 1854 | -4/Factory | Entered Research 1854 | -3/Research | Evolved 2 slots: Propulsion x1, Utility x1 2130 | -3/Research | Build established: Hacker-Sprinter 2204 | -3/Research | Identified exit to Armory 2204 | -3/Research | Identified exit to Quarantine 2284 | -3/Research | Lost 4 parts (3u1w) 2400 | -3/Research | Found Prototype Device 2464 | -3/Research | Entered Quarantine 2466 | -3/Quarantine | Identified Exp. Thermal Defense Suite 2603 | -3/Quarantine | Found Alien Artifact 2604 | -3/Quarantine | Identified Phase Redirector 2613 | -3/Quarantine | Found Alien Reactor 2614 | -3/Quarantine | Identified Matter Drive 2636 | -3/Quarantine | Watched by a mysterious "MATRIX" hacker 2636 | -3/Quarantine | Central database locked down 2680 | -3/Quarantine | Found Alien Impact Weapon 2680 | -3/Quarantine | Identified Core Stripper 2809 | -3/Quarantine | Met incapacitated Sigix Warrior 2809 | -3/Quarantine | Lockdown squad dispatched 2810 | -3/Quarantine | Acquired the access code to the Sigix quarantine chamber 2811 | -3/Quarantine | Unlocked Sigix quarantine chamber 2813 | -3/Quarantine | Found Sigix Containment Pod 2857 | -3/Quarantine | Found Alien Artifact 2858 | -3/Quarantine | Identified Core Reset Matrix 2858 | -3/Quarantine | Used Core Reset Matrix 2861 | -3/Quarantine | Discovered new exit (range 15) 2862 | -3/Quarantine | Sensed 3 artifacts in vicinity 2875 | -3/Quarantine | Identified exit to Research 2905 | -3/Quarantine | Found Unknown Device 2905 | -3/Quarantine | Identified Launcher Loader 2920 | -3/Quarantine | Spotted Fortress 2939 | -3/Quarantine | Discovered new exit (range 5) 2939 | -3/Quarantine | Discovered new exit (range 6) 2940 | -3/Quarantine | Identified exit to Section 7 2941 | -3/Quarantine | Identified exit to Protoforge 2942 | -3/Quarantine | Entered Section 7 2943 | -3/Section 7 | Detected hypermatrix surge 2943 | -3/Section 7 | Sensed 22 artifacts in vicinity 2969 | -3/Section 7 | Found Integrated Reactor 2970 | -3/Section 7 | Installed Integrated Reactor, increased core energy generation (+10) 2980 | -3/Section 7 | Found Core Reset Matrix 2983 | -3/Section 7 | Sensed 20 artifacts in vicinity 3068 | -3/Section 7 | Found Integrated Reactor 3068 | -3/Section 7 | Installed Integrated Reactor, increased core energy generation (+10) 3198 | -3/Section 7 | Spotted Executioner 3198 | -3/Section 7 | Spotted Executioner 3209 | -3/Section 7 | Spotted B-99 Colossus 3226 | -3/Section 7 | Activated Sigix Exoskeleton 3226 | -3/Section 7 | Received instructions from Sigix Warrior 3252 | -3/Section 7 | Found Integrity Redistributor 3252 | -3/Section 7 | Used Integrity Redistributor, redistributed integrity from core (-82) 3254 | -3/Section 7 | Found Integrity Redistributor 3254 | -3/Section 7 | Used Integrity Redistributor, redistributed integrity from core (-0) 3256 | -3/Section 7 | Found Integrity Redistributor 3256 | -3/Section 7 | Used Integrity Redistributor, redistributed integrity from core (-0) 3271 | -3/Section 7 | Found LRC Storage 3271 | -3/Section 7 | Installed LRC Storage, increased inventory capacity (+2) 3327 | -3/Section 7 | Allies destroyed Executioner 3364 | -3/Section 7 | Spotted Alpha 7 3389 | -3/Section 7 | Sigix Exoskeleton integrity reduced to 80% 3410 | -3/Section 7 | Found Prototype Device 3410 | -3/Section 7 | Identified Exp. Focal Shield 3418 | -3/Section 7 | Spotted S7 Guard 3462 | -3/Section 7 | Found Microwarp Drive 3493 | -3/Section 7 | Spotted S7 Guard 3498 | -3/Section 7 | Found Core Physics Calibrator 3501 | -3/Section 7 | Spotted B-86 Titan 3502 | -3/Section 7 | Spotted Executioner 3502 | -3/Section 7 | Spotted Investigator 3516 | -3/Section 7 | Core integrity fell below 50% 3553 | -3/Section 7 | Spotted Striker 3553 | -3/Section 7 | Spotted Striker 3557 | -3/Section 7 | Build established: Alien-Sprinter 3557 | -3/Section 7 | Sigix Exoskeleton integrity reduced to 60% 3589 | -3/Section 7 | Spotted Investigator 3615 | -3/Section 7 | Core integrity fell below 20% 3620 | -3/Section 7 | Sigix Exoskeleton integrity reduced to 40% 3626 | -3/Section 7 | Found Navigation Efficiency Matrix 3626 | -3/Section 7 | Installed Navigation Efficiency Matrix, process failed with unexpected side effects 3636 | -3/Section 7 | Spotted Alpha 7 3642 | -3/Section 7 | Core destroyed Last Messages --------------- 03617_ Drone signal jammed. 03617_ Microwarped (distance 11). 03626_ Acquired Navigation Efficiency Matrix. 03626_ Navigation Efficiency Matrix installed, partial failure due to system anomalies. 03627_ Dropped Q-thruster. 03633_ Microwarped (distance 38). 03634_ Q-thruster destroyed. 03634_ Penetrated by Slug. 03635_ Microwarped (distance 14). 03638_ Microwarped (distance 11). 03639_ Microwarped (distance 29). 03639_ Slug penetrates Garrison Access. 03639_ Slug penetrates Wall. 03640_ Adv. Melee Analysis Suite destroyed. 03640_ Penetrated by Slug. 03640_ Slug penetrates Wall. 03640_ Microwarped (distance 4). 03641_ Microwarped (distance 2). 03642_ Microwarped (distance 20). Map ----- +----------------------------------------------------+ | ?????????# /%" "%" "#?????????????????? | | ?????????# """ """ "" ####????????????????## | | ?????????# """ """ "%" #?????????????????# | | ?????????# ]]] """ """ "%" #?????????????????#! | | ?!???????# ]]] """ """ " ###?????????????????#= | | ?????????# ]w """ """ #???????????????##### | | ?????????# """ """ ""#????????????#### # | | #######+## """ """ T"#????????????#" "" "" | | ""#????????????#" | | ""#????????????#" | | #????????????#""""" | | #????????????#""""" | | #+########?##### ####### #????????????#""""" | | ? ] ###### ######## #????????????#""""" | | # # #????????????#" | | """"""" # # #????????????#""""" | | """"""" # """" + #????????????#""""" | | """"""" # "" """ # #?????????????####### | | # """ "" # #???????????????????# | | " / #???????????????????# | | ""###### # #####+####??????????????????# | | ####"###""##????? #??????????????????# | | ??# #####?????? """ #??????????????????# | | ??# #??????????#"" #??????????????????# | | ??# #??????????#""" " #??????????????????## | | ??# #??????????#""" " @"" #???????????????????? | | ###" #??????????#""""" " ""#???????????????????? | | " #??????????#""""""]""""#???????????????????? | | " #??????????#"""""" """"#???????????????????? | | " ##??????????#######;#####???????????????????? | | "" ###?????????????????# ????????????????????????? | | "" #???????????????????##????????????????????????? | | ??????????????????????????????????????????????? | | ###??????????????????????????????????????????????? | | | | | | | | | | | | | | | | | | | | | | | | | | | | | | | | | +----------------------------------------------------+ Best States ------------- Heat Dissipation 62 Energy Generation 43 Energy Capacity 290 Matter Stores 300 Matter Capacity 300 Sight Range 16 Robot Scan Range 16 Terrain Scan Density 10 ECM Strength 2 Jamming Range 16 Additional Mass Support 9 Armor Coverage 150 Resistance: KI 30 Melee Speed Boost 20 Phase Shifting 5 Evasion (%) 79 Melee Accuracy 8 Recoil Reduction 6 Offensive Hacking 50 Trap Extractor Capacity 8 Item Schematics ----------------- None Robot Schematics ------------------ None Fabricated ------------ T-07 Excavator | x2 | -5/Factory | Preloaded Repaired ---------- VTOL Module | 4% | -7/Factory VTOL Module | 44% | -7/Factory Phase Shifter | 45% | -5/Factory Studied --------- None Alien Tech Used ----------------- Phase Redirector Matter Drive Core Stripper Core Reset Matrix Integrated Reactor Integrity Redistributor LRC Storage Microwarp Drive Core Physics Calibrator Navigation Efficiency Matrix Achievements -------------- Alien Roots Everyone Must Die False Reunion Hammer Time Heavy Suspicion Hornet's Nest I Have A Map? I Laugh At Your Crits This Is My Hole Vwoop! Challenges ------------ None Game ------ Seed HackingRingJoltstriker Manual? 0 Play Time 03:26:11 Cumulative 123.4 hours Start 2026.07.13 @ 10:30:12 End 2026.07.14 @ 10:54:21 Sessions 5 Manual Loads 0 Difficulty Rogue Special Mode None Game No. 104 Rogue 104 Adventurer 0 Explorer 0 Win Type - Total 1 Types 1/0/0/0/0/0/0/0/0/0 Lore% 48 Gallery% 47 Achievement% 31 Wizard Run 0 Options --------- Layout 1 ASCII 0 Keyboard 0 Movement Mouse Keybinds 0 Fullscreen 1 Font 24/Smallcaps Map View 50x35 Zoom Use 0% Tactical HUD 1 Map Filters NONE Filters NONE Steam 1 RUN: 646a0512-3a21-40be-b4ef-9b288d1922c0